Cogmind - Beta 13 X1 @@@ ROGUE MODE // 2023.10.20 @ 19:22:47 Player: Plexion Result: Destroyed by 7R-MNS with Phase Gun Performance ------------- Evolutions (2) 1000 Regions Visited (5) 1000 Robots Destroyed (28) 140 Value Destroyed (539) 539 Prototype IDs (25) 500 Alien Tech Used (0) 0 Bonus (364) 364 TOTAL SCORE: 3543 Bonus ------- Follower Combat Kills 103 Aligned with FarCom 300 Friendly Fire -39 Cogmind --------- Core Integrity 0/550 Matter 211/300 Energy 82/100 System Corruption 0% Temperature Hot (228) Movement Core (700) Ox13 Location -8/Materials Parts ------- > --- POWER (1) -------- (None) > --- PROPULSION (4) --- (None) > --- UTILITY (4) ------ High-capacity Storage Unit Advanced Targeting Computer > --- WEAPON (2) ------- (None) > --- INVENTORY (20) --- Ion Engine Improved Cesium-ion Thruster Improved Cesium-ion Thruster Improved Cesium-ion Thruster Improved Heat Sink Large Storage Unit Machine Analyzer Improved Salvage Targeting Computer Light Armor Plating Light Armor Plating Light Armor Plating Grenade Launcher Peak State ------------ > --- POWER ------------ Ion Engine > --- PROPULSION ------- Light Treads Light Treads Light Treads Light Treads > --- UTILITY ---------- High-capacity Storage Unit Advanced Targeting Computer Hardened Medium Armor Plating Hardened Medium Armor Plating > --- WEAPON ----------- Assault Rifle Enhanced Autogun > --- INVENTORY -------- Ion Engine Light Treads Light Treads Improved Cesium-ion Thruster Improved Cesium-ion Thruster Improved Cesium-ion Thruster Improved Heat Sink Large Storage Unit Machine Analyzer Improved Salvage Targeting Computer Light Armor Plating Light Armor Plating Light Armor Plating Improved Light Armor Plating EM Pulse Gun EM Pulse Gun Assault Rifle Bore Cannon Grenade Launcher [Rating: 24] Favorites ----------- Power Ion Engine Engine Ion Engine Propulsion Light Treads Treads Light Treads Flight Unit Improved Cesium-ion Thruster Utility Improved Heat Sink Device Improved Heat Sink Storage High-capacity Storage Unit Processor Advanced Targeting Computer Protection Hardened Medium Armor Plating Weapon Assault Rifle Energy Gun Medium Laser Ballistic Gun Assault Rifle Ballistic Cannon Bore Cannon Launcher Grenade Launcher Build | -11 -10 -10 -10 -9 -8 ------- Run | Jun Mat Min Exi Min Mat Slots Evolved 4 | . . . . . 4 Power . | . . . . . . Propulsion 2 | . . . . . 2 Utility 2 | . . . . . 2 Weapon . | . . . . . . Parts Attached 35 | 6 6 2 2 1 18 Power 2 | 1 1 . . . . Engine 2 | 1 1 . . . . Core . | . . . . . . Reactor . | . . . . . . Propulsion 8 | 2 . . . . 6 Treads 7 | 2 . . . . 5 Leg . | . . . . . . Wheel . | . . . . . . Hover . | . . . . . . Flight 1 | . . . . . 1 Utility 13 | 1 4 . 2 1 5 Device 2 | . 2 . . . . Storage 5 | 1 1 . 2 1 . Processor 2 | . . . . . 2 Hackware . | . . . . . . Protection 4 | . 1 . . . 3 Artifact . | . . . . . . Weapon 12 | 2 1 2 . . 7 Energy Gun 5 | 1 1 1 . . 2 Energy Cannon . | . . . . . . Ballistic Gun 5 | 1 . . . . 4 Ballistic Cannon 1 | . . . . . 1 Launcher 1 | . . 1 . . . Special Weapon . | . . . . . . Impact Weapon . | . . . . . . Slashing Weapon . | . . . . . . Piercing Weapon . | . . . . . . Special Melee Weapon . | . . . . . . Unidentified Prototypes 2 | . . . . . 2 Parts Lost 18 | . 2 . . . 16 Power 2 | . 1 . . . 1 Propulsion 6 | . . . . . 6 Utility 4 | . 1 . . . 3 Weapon 6 | . . . . . 6 Highest Loss Streak 16 | . 2 . . . 16 To Critical Strikes . | . . . . . . Average Slot Usage (%) 99 | . 98 100 100 100 95 Engine 13 | . 13 14 14 14 8 Treads 28 | . 28 28 28 28 33 Device 10 | . 7 14 14 14 . Storage 13 | . 14 14 14 14 9 Processor 2 | . . . . . 16 Protection 2 | . 5 . . . 8 Energy Gun 12 | . 14 9 14 14 5 Ballistic Gun 13 | . 14 14 14 14 12 Naked Turns . | . . . . . . Heaviest Build 66 | 12 30 31 50 50 66 Greatest Support 80 | 40 40 40 40 40 80 Greatest Overweight (x) 1 | . . . 1 1 . Average Overweight (x) . | . . . . . . Largest Inventory Capacity 20 | 8 15 15 20 20 20 Average Capacity 16 | 6 12 15 18 19 20 Most Carried 20 | 2 13 15 16 15 20 Average Carried 12 | 1 6 13 15 15 16 Final Capacity 20 | 8 15 15 15 20 20 Final Carried 15 | 2 13 15 15 15 12 Class Distribution -------------------- 87% | Mutant 12% | Scavenger-Mutant Dominant Class ---------------- Mutant | -10/Materials Mutant | -10/Mines Mutant | -10/Exiles Mutant | -9/Mines Scavenger-Mutant | -8/Materials Resources | -11 -10 -10 -10 -9 -8 ----------- Run | Jun Mat Min Exi Min Mat Matter Collected 784 | 249 239 55 . 54 187 Remotely . | . . . . . . Salvage Created 1077 | . 760 . . 112 205 Parts 68 | . 48 . . 11 9 Haulers Intercepted 5 | . 2 . . . 3 Recyclers Shooed 1 | . 1 . . . . Parts Field Recycled . | . . . . . . Retrieved Matter . | . . . . . . Parts Self-Destructed . | . . . . . . Prevented . | . . . . . . Kills | -11 -10 -10 -10 -9 -8 ------- Run | Jun Mat Min Exi Min Mat Combat Hostiles Destroyed 15 | . 9 1 . 4 1 Guns 14 | . 9 . . 4 1 AOE 1 | . . 1 . . . Classes Destroyed 10 | . 6 1 . 3 . Worker 1 | . . . . 1 . Tunneler 1 | . . . . 1 . Hauler 5 | . 2 . . . 3 Recycler 2 | . 2 . . . . Mechanic 1 | . 1 . . . . Operator 2 | . 2 . . . . Watcher 2 | . 2 . . . . Swarmer 4 | . . . . 4 . Grunt 10 | . 9 . . . 1 Assembled 1 | . . 1 . . . Best Kill Streak 5 | . 5 1 . 4 2 Combat Bots Only 4 | . 4 1 . 4 1 Max Kills in Single Turn 1 | . 1 1 . 1 1 Gunslinging . | . . . . . . Exploded 1 | . . 1 . . . Melee . | . . . . . . Uniques/NPCs Destroyed . | . . . . . . Combat | -11 -10 -10 -10 -9 -8 -------- Run | Jun Mat Min Exi Min Mat Damage Taken 3112 | . 428 72 . 34 2578 Core 635 | . 37 25 . 8 565 Absorbed by Shields . | . . . . . . Core Remaining (%) 86 | 100 . . . 72 . Volleys Fired 112 | . 57 4 1 7 43 Largest 2 | . 2 1 2 2 2 Hottest 70 | . 70 30 70 70 70 Shots Fired 213 | . 114 4 2 14 79 Gun 209 | . 114 . 2 14 79 Cannon . | . . . . . . Launcher 4 | . . 4 . . . Special . | . . . . . . Kinetic 120 | . 57 . 1 7 55 Thermal 87 | . 56 . 1 7 23 Explosive 4 | . . 4 . . . Electromagnetic 2 | . 1 . . . 1 Robot Hit Streak 24 | . 24 3 . 4 15 Robot Miss Streak 4 | . 4 1 . 2 2 Penetration Max . | . . . . . . Secondary Targets 1 | . . . . 1 . Max Gunslinging Chain 1 | . . . . 1 . Shots Hit Robots 152 | . 79 3 . 7 63 Core Hits 57 | . 35 3 . 6 13 Critical Kills . | . . . . . . Critical Parts Destroyed 1 | . . . . . 1 Critical Strikes 7 | . 3 . . . 4 Burn 6 | . 3 . . . 3 Destroy 1 | . . . . . 1 Melee Attacks . | . . . . . . Impact . | . . . . . . Slashing . | . . . . . . Piercing . | . . . . . . Sneak Attacks . | . . . . . . Combat Hostiles . | . . . . . . Follow-up Attacks . | . . . . . . Damage Inflicted 1949 | . 1054 137 . 99 659 Guns 1812 | . 1054 . . 99 659 Cannons . | . . . . . . Explosions 114 | . . 114 . . . Melee . | . . . . . . Ramming 23 | . . 23 . . . Kinetic 991 | . 520 . . 37 434 Thermal 801 | . 516 . . 62 223 Explosive 114 | . . 114 . . . Electromagnetic 20 | . 18 . . . 2 Impact . | . . . . . . Slashing . | . . . . . . Piercing . | . . . . . . Highest Corruption . | . . . . . . Average Corruption . | . . . . . . Corruption Purged . | . . . . . . Corruption Blocked . | . . . . . . Overload Shots . | . . . . . . Overflow Damage . | . . . . . . Projectiles . | . . . . . . Explosions . | . . . . . . Melee . | . . . . . . Knockbacks . | . . . . . . Impact . | . . . . . . Kinetic . | . . . . . . Secondary . | . . . . . . Self-Inflicted Damage . | . . . . . . Shots . | . . . . . . Rammed 5 | . 1 3 . . 1 Targets Rammed 5 | . 1 3 . . 1 Kicked . | . . . . . . Crushed . | . . . . . . Highest Temperature 392 | . 162 . . . 392 Average Temperature 74 | . 41 . . . 122 Received Heat Transfer 1287 | . 261 . . . 1026 Effects 1 | . . . . . 1 Short Circuit 1 | . . . . . 1 Siege Activations . | . . . . . . Robots Corrupted . | . . . . . . Combat Hostiles . | . . . . . . Parts Fried . | . . . . . . Impact Corruptions . | . . . . . . Robots Melted . | . . . . . . Combat Hostiles . | . . . . . . Parts Melted 4 | . 2 . . . 2 Heat Transferred 2775 | . 1702 . . 185 888 Parts Sabotaged . | . . . . . . Parts Stolen . | . . . . . . Parts Stripped . | . . . . . . Power Chain Reactions . | . . . . . . Missiles Intercepted . | . . . . . . Alert | -11 -10 -10 -10 -9 -8 ------- Run | Jun Mat Min Exi Min Mat Peak Influence 161 | . 127 60 . 90 161 Initial 41 | . . 41 . . 1 Average 45 | . 69 25 . 29 70 Maximum Alert Level . | . . . . . . Low Security (%) 100 | 100 100 100 . 100 100 Level 1 . | . . . . . . Level 2 . | . . . . . . Level 3 . | . . . . . . Level 4 . | . . . . . . Level 5 . | . . . . . . High Security . | . . . . . . Max Security . | . . . . . . Squads Dispatched 5 | . 2 . . . 3 Investigation . | . . . . . . Extermination . | . . . . . . Reinforcement 5 | . 2 . . . 3 Assault . | . . . . . . Garrison . | . . . . . . Intercept . | . . . . . . Searches Triggered . | . . . . . . Construction Impeded . | . . . . . . Haulers Reinforced . | . . . . . . Active Scanning Responses . | . . . . . . Cargo Convoy Interrupts . | . . . . . . Stealth | -11 -10 -10 -10 -9 -8 --------- Run | Jun Mat Min Exi Min Mat Distress Signals 5 | . 2 . . . 3 Communications Jammed . | . . . . . . Distress Signals . | . . . . . . Times Spotted 33 | . 18 1 . 4 10 Peak Tracking Total 9 | . 4 1 9 4 2 Tactical Retreats . | . . . . . . Traps | -11 -10 -10 -10 -9 -8 ------- Run | Jun Mat Min Exi Min Mat Traps Triggered 2 | . 1 1 . . . Indirectly . | . . . . . . Trap Hack Attempts . | . . . . . . Triggered . | . . . . . . Disarmed . | . . . . . . Reprogrammed . | . . . . . . Reused . | . . . . . . Traps Extracted . | . . . . . . Installed . | . . . . . . Triggered . | . . . . . . Machines | -11 -10 -10 -10 -9 -8 ---------- Run | Jun Mat Min Exi Min Mat Machines Disabled 1 | . . . 1 . . Max in Single Turn 1 | . . . 1 . . Machines Repaired . | . . . . . . Machines Sabotaged . | . . . . . . Overloaded Fab Kills . | . . . . . . Hacking | -11 -10 -10 -10 -9 -8 --------- Run | Jun Mat Min Exi Min Mat Machines Accessed 10 | . 5 1 2 . 2 Terminals 6 | . 4 . . . 2 Fabricators . | . . . . . . Repair Stations . | . . . . . . Recycling Units 1 | . 1 . . . . Scanalyzers . | . . . . . . Garrison Access . | . . . . . . Total Hacks 18 | . 8 1 2 . 7 Successful 7 | . 3 1 2 . 1 Failed 10 | . 4 . . . 6 Catastrophic 1 | . . . . . 1 Database Lockouts 1 | . 1 . . . . Manual 12 | . 6 . 1 . 5 Terminals 13 | . 6 . . . 7 Fabricators . | . . . . . . Repair Stations . | . . . . . . Recycling Units 2 | . 2 . . . . Scanalyzers . | . . . . . . Garrison Access . | . . . . . . Terminal Hacks 6 | . 2 1 2 . 1 Record 1 | . . . 1 . . Robot Analysis 1 | . 1 . . . . Open Door 1 | . . 1 . . . Locate Traps 1 | . 1 . . . . Hauler Manifests 1 | . . . . . 1 Derelict Proto ID Bank 1 | . . . 1 . . Fabricator Hacks . | . . . . . . Repair Station Hacks . | . . . . . . Recycling Unit Hacks . | . . . . . . Scanalyzer . | . . . . . . Garrison Access Hacks . | . . . . . . Unauthorized Hacks 1 | . 1 . . . . Terminals 1 | . 1 . . . . Botnet 1 | . 1 . . . . Fabricators . | . . . . . . Repair Stations . | . . . . . . Recycling Units . | . . . . . . Scanalyzers . | . . . . . . Garrison Access . | . . . . . . Data Cores Recovered 1 | . 1 . . . . Used . | . . . . . . Hacking Detections 5 | . 3 . . . 2 Full Trace Events . | . . . . . . Feedback Events . | . . . . . . Feedback Blocked . | . . . . . . Robot Schematics Acquired . | . . . . . . Robots Built . | . . . . . . Authchips . | . . . . . . Time . | . . . . . . Total Robot Build Rating . | . . . . . . Part Schematics Acquired . | . . . . . . Parts Built . | . . . . . . Authchips . | . . . . . . Time . | . . . . . . Total Part Build Rating . | . . . . . . Parts Repaired . | . . . . . . Time . | . . . . . . Parts Recycled . | . . . . . . Recycled Matter . | . . . . . . Retrieved Matter . | . . . . . . Retrieved Components . | . . . . . . Parts Scanalyzed . | . . . . . . Part Schematics Acquired . | . . . . . . Parts Damaged . | . . . . . . Bothacking | -11 -10 -10 -10 -9 -8 ------------ Run | Jun Mat Min Exi Min Mat Used RIF Installer . | . . . . . . Robots Hacked . | . . . . . . Non-combat . | . . . . . . Combat . | . . . . . . Robot Hacks Applied . | . . . . . . Relay Couplers Released . | . . . . . . Fabnet Peak Effective % . | . . . . . . Robots Rewired . | . . . . . . Allies Hacked . | . . . . . . Hacks Repelled . | . . . . . . Allies | -11 -10 -10 -10 -9 -8 -------- Run | Jun Mat Min Exi Min Mat Total Allies 4 | . . 1 . 3 . Largest Group 3 | . . 1 . 3 3 Highest-Rated Group 40 | . . 31 . 40 40 Highest-Rated Ally 31 | . . 31 . 16 16 Total Orders . | . . . . . . Ally Attacks 45 | . . . . . 45 Total Damage 351 | . . . . . 351 Kills 4 | . . . . . 4 Allies Corrupted . | . . . . . . Allies Melted . | . . . . . . Intel | -11 -10 -10 -10 -9 -8 ------- Run | Jun Mat Min Exi Min Mat Robot Analysis Total 1 | . 1 . . . . Derelict Logs Recovered 3 | . . 2 . 1 . Drone Launches . | . . . . . . Drone Recoveries . | . . . . . . Exploration | -11 -10 -10 -10 -9 -8 ------------- Run | Jun Mat Min Exi Min Mat Turns Passed 4456 | 82 1056 883 710 1147 578 Spaces Moved 2162 | 47 516 514 345 482 258 Core 3 | 3 . . . . . Treads 2159 | 44 516 514 345 482 258 Legs . | . . . . . . Wheels . | . . . . . . Hover . | . . . . . . Flight . | . . . . . . Fastest Speed 50 | 50 160 160 160 160 160 Average Speed 183 | 152 160 160 203 233 160 Slowest Speed 240 | 160 160 160 240 240 160 Overloaded Moves . | . . . . . . Propulsion Burnouts . | . . . . . . Robots Hopped . | . . . . . . Cave-ins Triggered . | . . . . . . Exploration Rate (%) 61 | 4 86 89 69 94 28 Regions Visited 5 Branch Regions 3 Pre-discovered Areas 2 | . . . 1 1 . Known Exits Taken . | . . . . . . Unknown Exits Taken 5 | 1 1 1 1 1 . Scrap Searched 2 | . . . . 2 . Spaces Dug . | . . . . . . Terrain Destroyed 24 | . . 24 . . . Melee . | . . . . . . Projectile . | . . . . . . AOE 24 | . . 24 . . . Terrain Rammed . | . . . . . . Walls Destroyed . | . . . . . . Machines Disabled . | . . . . . . Actions | -11 -10 -10 -10 -9 -8 --------- Run | Jun Mat Min Exi Min Mat Total 2437 | 54 630 568 351 492 342 Wait 97 | . 39 42 . 3 13 Move 2157 | 46 515 513 344 481 258 Hop . | . . . . . . Pick Up 23 | 2 10 3 2 . 6 Fast Attach 14 | 6 4 . . . 4 Attach 10 | . . . . . 10 Detach 2 | . 1 . . . 1 Swap 11 | . 2 2 2 1 4 Drop 6 | . 1 1 2 . 2 Fire 112 | . 57 4 1 7 43 Melee . | . . . . . . Ram 1 | . . . . . 1 Kick . | . . . . . . Crush 4 | . 1 3 . . . Escape Stasis . | . . . . . . Rewire . | . . . . . . Trap . | . . . . . . Miscellaneous . | . . . . . . Route ------- -11/Junkyard -10/Materials (discovered 5 exits: [*Mat x3] / *Min / [*Sub]) -10/Mines (discovered 3 exits: [*Mat] / *Exi / [*Sub]) -10/Exiles -9/Mines (discovered 2 exits: *Mat x2) -8/Materials (discovered 1 exit: Fac) History --------- Turn | Location | Event 17 | -11/Junkyard | Discovered new exit (range 15) 83 | -11/Junkyard | Entered Materials 169 | -10/Materials | Central database locked down 313 | -10/Materials | Build established: Mutant 473 | -10/Materials | Discovered new exit (range 10) 553 | -10/Materials | Discovered new exit (range 14) 649 | -10/Materials | Discovered new exit (range 13) 711 | -10/Materials | Discovered new exit (range 16) 958 | -10/Materials | Discovered new exit (range 16) 1139 | -10/Materials | Entered Mines 1147 | -10/Mines | Assembled infested the area 1322 | -10/Mines | Learned 4 Materials zone layouts 1412 | -10/Mines | Learned Materials emergency access door positions 1512 | -10/Mines | Discovered new exit (range 11) 1515 | -10/Mines | Received a Mining Laser from a helpful Derelict 1704 | -10/Mines | A weapon hastily lodged in a ceiling crevice suddenly fell to the ground 1765 | -10/Mines | Discovered new exit (range 7) 1782 | -10/Mines | Met a Derelict who couldn't figure out how to use a Trap Extractor 2014 | -10/Mines | Deemed a non-threat by the Exiles lab entrance 2015 | -10/Mines | Discovered new exit (range 5) 2022 | -10/Mines | Entered Exiles 2062 | -10/Exiles | Met 8R-AWN 2086 | -10/Exiles | Met EX-HEX 2157 | -10/Exiles | Met EX-DEC 2186 | -10/Exiles | Learned location of Zion (-6) 2427 | -10/Exiles | Met EX-BIN 2460 | -10/Exiles | Aligned with FarCom system 2463 | -10/Exiles | Given EX-Vault access code 2518 | -10/Exiles | Opened EX-Vault 2571 | -10/Exiles | Warned to stay clear of 0b10 Research branches 2695 | -10/Exiles | Attacked by the Exiles 2719 | -10/Exiles | Discovered new exit (range 10) 2732 | -10/Exiles | Entered Mines 2750 | -9/Mines | Met a Derelict bent on vengeance 2948 | -9/Mines | Assisted by bots powering up and referring to "LRC-V3" 3022 | -9/Mines | Discovered new exit (range 10) 3592 | -9/Mines | Discovered new exit (range 13) 3879 | -9/Mines | Entered Materials 3879 | -8/Materials | Accompanied by 3 allies 3879 | -8/Materials | Evolved 4 slots: Propulsion x2, Utility x2 3880 | -8/Materials | Identified exit to Factory 4182 | -8/Materials | Build established: Scavenger-Mutant 4386 | -8/Materials | Met 7R-MNS 4400 | -8/Materials | Attacked by 7R-MNS 4446 | -8/Materials | Core integrity fell below 50% 4455 | -8/Materials | Core integrity fell below 20% 4457 | -8/Materials | Destroyed by 7R-MNS with Phase Gun Last Messages --------------- 04410_ Lgt. Treads destroyed. 04412_ Critical hit (Burn: +37). 04414_ Lgt. Treads destroyed. 04417_ Critical hit (Burn: +37). 04417_ Lgt. Treads destroyed. 04419_ Hrd. Medium Armor Plating destroyed. 04419_ Lgt. Treads destroyed. 04422_ Ion Engine destroyed. 04426_ Lgt. Treads destroyed. 04433_ Hrd. Medium Armor Plating destroyed. 04433_ Imp. Light Armor Plating destroyed. 04433_ Assault Rifle destroyed. 04440_ Enh. Autogun destroyed. 04443_ Bore Cannon broken. 04443_ Overheating: Short circuit. 04445_ Broken Bore Cannon destroyed. 04445_ Assault Rifle destroyed. 04449_ EM Pulse Gun destroyed. 04451_ Slammed into 7R-MNS. 04454_ Critical hit (Burn: +37). Map ----- +----------------------------------------------------+ | ?????????????????????????????????????????????????? | | ?????????????????????????????????????????????????? | | ?????????????????????????????????????????????????? | | ?????????????????????????????????????????????????? | | ?????????????????????????????????????###########?? | | ?????????????????????????????????????#[ !# ### | | ?????????????????????????????????????# ! # # | | ?????????????????????????????????????# + | | ?????????????????????????????????????# !![ # # | | ?????????????????????????????????????#[ !][ # #?? | | ?????????????????????????????????????# !][ # #?? | | ????#???????######???????????????????## ##### #?? | | ????????????# #????????????????????###???#[ #?? | | ????#???????# #????????????????????#######%!#?? | | ????######### #???????????????????##!!!!##[ #?? | | ???? ## #???????????????????#! !# #? | | ???? ## #???????????????????# # #? | | ???? ## ############?????#### # # | | ????#### %=## ##] #?????# ^ ^ # | | ########% !## ## #?????# + | | # %%## ## ###???# ### ^*%"" # | | [ # %###+#### """ # ????????# !%""" # | | ! # *= ^ # """ "" #######+#?# =""" #? | | ! """ + = ^+ """ "" # ?# """ #? | | ! """ #%% *[[* # g%[# """""???# #?? | | """ # !!![! # = @= + """"""" # #?? | | # =%! ########;## """"""" + ### #?? | | # = #?## # """"""" # #?# #?? | | #####+## % ##??## """"""" # #?# #?? | | ????# ## T#???# # ##?#+### | | #####+## ######### ##???# # # | | """"" ## #???????# ########+####### + [ | | """"" ## #???????# # ] | | """"" ## #???????# #?### ## | | """"" ## #????#### ####################??????? | | """"" ## #??? ?# #?????????????????????????? | | ## #???" # #?????????????????????????? | | ## #?? "" # #?????????????????????????? | | " ## ##? "" # #?????????????????????????? | | #+##### # """ # #?????????????????????????? | | # "" # #?????????????????????????? | | T + """ # ?????????????????????????? | | # """ # ?????????????????????????? | | ## #### # """ # ?????????????????????????? | | ?# #??#######? " # #?????????????????????????? | | ?# #?????????? # ??????????????????????????? | | ?# #??????????? ! # ??????????????????????????? | | ?# #??????????? #?????????????????????????????? | | ## #????????????####?????????????????????????????? | | ??????????????????????????????????????????? | +----------------------------------------------------+ Best States ------------- Heat Dissipation 45 Energy Generation 10 Energy Capacity 250 Matter Stores 300 Matter Capacity 300 Sight Range 16 Terrain Scan Range 14 Terrain Scan Density 10 Armor Coverage 450 Evasion (%) 40 Targeting Accuracy 8 Recoil Reduction 4 Item Schematics ----------------- None Robot Schematics ------------------ None Fabricated ------------ Nothing Alien Tech Used ----------------- None Achievements -------------- None Challenges ------------ None Game ------ Seed DefenseBlastBlaster Manual? 0 Play Time 00:17:14 Cumulative 450.1 hours Start 2023.10.20 @ 19:06:26 End 2023.10.20 @ 19:22:47 Sessions 1 Manual Loads 0 Difficulty Rogue Special Mode None Game No. 523 Rogue 436 Adventurer 87 Explorer 0 Win Type - Total 25 Types 8/0/14/1/1/0/1/0/0 Lore% 89 Gallery% 92 Achievement% 76 Wizard Run 0 Options --------- ASCII 0 Keyboard 1 Movement Numpad Keybinds 0 Fullscreen 1 Font 18/SmallcapsGlow Map View 76x50 Tactical HUD 1 Map Filters NONE Filters NONE Steam 1 RUN: 07efe88d-ac92-4578-8012-085e18e75784